bitfinex/quotes_BTCUSD_20220205
["timestamp","ask_amount","ask_price","bid_price","bid_amount"]
[1644091440209,0.16552132,41519.0,41513.0,0.36101549]
[1644091440410,0.16552132,41519.0,41516.0,0.25111525]
[1644091442857,0.16552132,41519.0,41513.0,0.46101549]
[1644091443058,0.16552132,41519.0,41513.0,0.51101549]
[1644091443259,0.40552132,41519.0,41513.0,0.51101549]
[1644091443857,0.00070299,41518.0,41513.0,0.75984139]
[1644091444858,0.40122431,41519.0,41514.0,0.35]
[1644091445260,0.00066002,41518.0,41514.0,0.45]
[1644091446160,0.40122431,41519.0,41514.0,0.45]
[1644091446414,0.40122431,41519.0,41515.0,0.26132214]
[1644091446609,0.40122431,41519.0,41515.0,0.31132214]
[1644091446610,0.24,41519.0,41515.0,0.31132214]
[1644091446809,0.24,41519.0,41515.0,0.46132214]
[1644091448210,0.235,41519.0,41515.0,0.46132214]
[1644091448809,0.235,41519.0,41518.0,0.35625397]
[1644091449310,0.235,41519.0,41518.0,0.40625397]
[1644091450161,0.235,41519.0,41515.0,0.46132214]
[1644091450565,0.235,41519.0,41516.0,0.048]
[1644091451161,0.235,41519.0,41517.0,0.35173529]
[1644091451362,0.235,41519.0,41517.0,0.45173529]
[1644091451564,0.235,41519.0,41518.0,0.05]
[1644091452964,0.235,41519.0,41518.0,0.31650098]
[1644091453165,0.235,41519.0,41518.0,0.05]
[1644091455108,0.235,41519.0,41518.0,0.04744178]
[1644091455309,0.235,41519.0,41514.0,0.44214064]
[1644091455912,0.235,41519.0,41517.0,0.30231843]
[1644091456111,0.235,41519.0,41518.0,0.05]
[1644091457692,0.235,41519.0,41518.0,0.1]
[1644091457891,0.235,41519.0,41518.0,0.30927124]
[1644091458091,0.235,41519.0,41518.0,0.05]
[1644091458391,0.235,41519.0,41518.0,0.42834893]
[1644091458594,0.235,41519.0,41518.0,0.52634893]
[1644091458993,0.235,41519.0,41518.0,0.52628391]
[1644091459195,1.97537874,41520.0,41519.0,0.75]
[1644091459395,1.97537874,41520.0,41519.0,1.2316086]
[1644091460195,1.97537874,41520.0,41519.0,0.6316086]
[1644091460396,1.97287874,41520.0,41519.0,0.6316086]
[1644091460598,0.1938911,41532.0,41527.0,0.33987615]
[1644091460599,0.0702741,41532.0,41527.0,0.33987615]
[1644091460798,0.0689697,41532.0,41527.0,0.43987615]
[1644091460999,0.0189697,41532.0,41527.0,0.53787615]
[1644091461197,0.0189697,41532.0,41527.0,0.82036398]
[1644091461629,5.32399536,41538.0,41528.0,0.3]
[1644091461828,5.3937935,41538.0,41531.0,0.0189697]
[1644091462129,0.00029156,41532.0,41531.0,0.0189697]
[1644091462929,4.99575634,41538.0,41531.0,0.0189697]
[1644091463230,0.00070336,41534.0,41531.0,0.0189697]
[1644091463631,0.286752,41533.0,41531.0,0.0189697]
[1644091464529,0.24041129,41532.0,41531.0,0.0189697]
[1644091464729,0.57516329,41532.0,41531.0,0.0189697]
[1644091466367,0.57516329,41532.0,41531.0,0.01310293]
[1644091466769,0.57516329,41532.0,41523.0,0.05]
[1644091467069,0.03695013,41524.0,41522.0,0.05]
[1644091467271,0.28268209,41523.0,41518.0,0.02035345]
[1644091467476,0.10808948,41519.0,41518.0,0.02035345]
[1644091468169,0.33065559,41519.0,41518.0,0.02035345]
[1644091468769,0.33065559,41519.0,41513.0,0.46171913]
[1644091469012,0.29370546,41519.0,41513.0,0.41101549]
[1644091469213,0.03695013,41516.0,41513.0,0.31171912]
[1644091469611,0.29370546,41519.0,41513.0,0.31171912]
[1644091470015,0.29370546,41519.0,41513.0,0.31101549]
[1644091470412,0.29370546,41519.0,41513.0,0.3117191]
[1644091472014,0.334752,41518.0,41513.0,0.3117191]
[1644091472213,0.32990677,41517.0,41513.0,0.3117191]
[1644091472414,0.32990677,41517.0,41513.0,0.31101549]
[1644091472664,0.048,41516.0,41513.0,0.31171909]
[1644091473560,0.30370252,41514.0,41513.0,0.31171909]
[1644091473760,0.35170252,41514.0,41513.0,0.31101549]
[1644091474160,0.048,41514.0,41513.0,0.31101549]
[1644091476061,0.334752,41514.0,41513.0,0.31101549]
[1644091476810,0.334752,41514.0,41513.0,0.30845727]
[1644091479210,0.334752,41514.0,41513.0,0.3018253]
[1644091480469,0.334752,41514.0,41502.0,0.28314023]
[1644091480470,0.06793616,41508.0,41502.0,0.28314023]
[1644091480762,0.29551056,41509.0,41502.0,0.15]
[1644091481662,0.07846507,41506.0,41502.0,0.34633384]
[1644091482063,0.07846507,41506.0,41502.0,0.15]
[1644091482363,0.07846507,41506.0,41503.0,0.05]
[1644091483264,0.07846507,41506.0,41501.0,0.002]
[1644091483464,0.07846507,41506.0,41502.0,0.00070317]
[1644091484309,0.27555981,41508.0,41502.0,0.00070317]
[1644091484509,0.27555981,41508.0,41501.0,0.002]
[1644091484712,0.27555981,41508.0,41502.0,0.00070318]
[1644091484911,0.32355981,41508.0,41502.0,0.00070318]
[1644091485812,0.32355981,41508.0,41501.0,0.002]
[1644091486014,0.07789176,41505.0,41503.0,0.00070317]
[1644091486615,0.048,41504.0,41503.0,0.00070317]
[1644091486814,0.048,41504.0,41501.0,0.002]
[1644091487016,0.34306233,41504.0,41501.0,0.002]
[1644091487216,0.286752,41503.0,41501.0,0.00270318]
[1644091487417,0.75,41501.0,41497.0,0.003]
[1644091487666,0.77676877,41502.0,41489.0,0.0011]
[1644091487667,0.6,41499.0,41489.0,0.0011]
[1644091487867,0.07777979,41491.0,41489.0,0.0011]
[1644091488068,0.06149022,41491.0,41488.0,0.00225683]
[1644091488466,0.06149022,41491.0,41488.0,0.23081116]
[1644091488667,0.06149022,41491.0,41489.0,0.336576]
[1644091489269,0.06149022,41491.0,41488.0,0.23081116]
[1644091489471,0.06149022,41491.0,41488.0,0.00225683]
[1644091490371,0.06149022,41491.0,41488.0,0.20342065]
[1644091490569,0.06149022,41491.0,41488.0,0.00225683]
[1644091490974,0.06149022,41491.0,41486.0,0.00105754]
[1644091491170,0.06114062,41491.0,41486.0,0.00105754]
[1644091491621,0.33908935,41491.0,41486.0,0.00105754]
[1644091493021,0.0476504,41491.0,41486.0,0.00105754]
[1644091494024,0.0476504,41491.0,41487.0,0.336576]
[1644091494225,0.0476504,41491.0,41486.0,0.00105754]
[1644091497064,0.286752,41490.0,41486.0,0.00105754]
[1644091497265,0.048,41489.0,41486.0,0.00105754]
[1644091497462,0.286752,41488.0,41486.0,0.00105754]
[1644091497661,0.048,41487.0,41486.0,0.00105754]
[1644091497861,0.334752,41487.0,41486.0,0.00105754]
[1644091498062,0.334752,41487.0,41485.0,0.0034065]
[1644091498063,0.836752,41486.0,41485.0,0.00330582]
[1644091498264,0.884752,41486.0,41485.0,0.00330582]
[1644091498460,0.884752,41486.0,41484.0,0.00130582]
[1644091498461,0.334752,41486.0,41484.0,0.00130582]
[1644091498668,0.81433839,41485.0,41484.0,0.00130582]
[1644091498914,1.11325485,41485.0,41484.0,0.00130582]
[1644091499210,0.95729022,41485.0,41483.0,0.00090582]
[1644091499410,0.28796617,41484.0,41483.0,0.00090582]
[1644091499607,0.286752,41484.0,41483.0,0.00090582]
[1644091499809,0.34759142,41487.0,41483.0,0.00090582]
[1644091500009,0.048,41486.0,41483.0,0.00090582]
[1644091500310,0.048,41486.0,41484.0,0.336576]
[1644091500509,0.7216,41494.0,41483.0,0.00131234]
[1644091500510,0.1218,41494.0,41483.0,0.00131234]
[1644091500709,0.798,41493.0,41481.0,0.01840282]
[1644091500912,0.798,41493.0,41484.0,0.27359108]
[1644091501109,0.798,41493.0,41481.0,0.01840282]
[1644091501312,0.28382247,41489.0,41481.0,0.01840282]
[1644091501510,0.048,41488.0,41481.0,0.01840282]
[1644091502109,0.08617175,41485.0,41483.0,0.22130422]
[1644091502311,0.048,41484.0,41481.0,0.01840282]
[1644091502959,0.048,41484.0,41482.0,0.336576]
[1644091503864,0.048,41484.0,41483.0,0.20133359]
[1644091504262,0.048,41484.0,41483.0,0.53790959]
[1644091504462,0.00029435,41487.0,41483.0,0.53790959]
[1644091504660,0.00029435,41487.0,41484.0,0.336576]
[1644091504861,0.36600785,41496.0,41484.0,0.33682064]
[1644091505060,0.28940578,41493.0,41484.0,0.00024464]
[1644091505262,0.00070024,41488.0,41484.0,0.336576]
[1644091505463,0.00070024,41488.0,41484.0,0.33682064]
[1644091505861,0.00070024,41488.0,41484.0,0.00024464]
[1644091506065,0.06923822,41483.0,41482.0,0.00024464]
[1644091506263,0.38825132,41491.0,41481.0,0.01910317]
[1644091506264,0.38825132,41491.0,41481.0,0.01934781]
[1644091506520,0.00070023,41488.0,41481.0,0.01910317]
[1644091506714,0.00070023,41488.0,41481.0,0.31687384]
[1644091506916,0.00070023,41488.0,41481.0,0.01934781]
[1644091507314,0.048,41489.0,41481.0,0.01934781]
[1644091507315,0.048,41489.0,41481.0,0.01864746]
[1644091507916,0.048,41489.0,41484.0,0.26599034]
[1644091508117,0.04,41489.0,41484.0,0.26599034]
[1644091508518,0.38825132,41491.0,41484.0,0.26599034]
[1644091508917,0.3,41490.0,41482.0,0.00024464]
[1644091509126,0.348,41490.0,41481.0,0.01864746]
[1644091509618,0.08660622,41489.0,41481.0,0.01864746]
[1644091509817,0.08660622,41489.0,41483.0,0.27989419]
[1644091510260,0.22207794,41488.0,41482.0,0.00024464]
[1644091510460,0.22207794,41488.0,41481.0,0.01905287]
[1644091511064,0.22207794,41488.0,41481.0,0.01864746]
[1644091511262,0.00069928,41487.0,41481.0,0.01934684]
[1644091511666,0.38861846,41484.0,41481.0,0.01934684]
[1644091512263,0.38861846,41484.0,41481.0,0.01864746]
[1644091512464,0.38848046,41484.0,41481.0,0.01864746]
[1644091512663,0.43648046,41484.0,41481.0,0.01864746]
[1644091513763,0.07342367,41482.0,41481.0,0.01864746]
[1644091514018,0.048,41484.0,41481.0,0.01840282]
[1644091514222,0.048,41484.0,41481.0,0.01864746]
[1644091514425,0.048,41484.0,41482.0,0.336576]
[1644091515419,0.40390799,41485.0,41481.0,0.01864746]
[1644091515821,0.08232649,41484.0,41481.0,0.01864746]
[1644091516025,0.08232649,41484.0,41481.0,0.0193437]
[1644091516422,0.00069614,41487.0,41481.0,0.0193437]
[1644091516623,0.00069614,41487.0,41482.0,0.336576]
[1644091516828,0.00069614,41487.0,41482.0,0.33682064]
[1644091517024,0.32319612,41492.0,41482.0,0.33682064]
[1644091517322,0.00069615,41487.0,41482.0,0.33682064]
[1644091517524,0.00069615,41487.0,41484.0,0.336576]
[1644091517966,0.00069615,41487.0,41484.0,0.33682064]
[1644091518165,0.4218,41494.0,41484.0,0.33682064]
[1644091518367,0.00069615,41488.0,41484.0,0.00024464]
[1644091518568,0.00069615,41488.0,41485.0,0.336576]
[1644091518767,0.00069615,41488.0,41486.0,0.20985964]
[1644091519067,0.00069615,41488.0,41486.0,0.20485964]
[1644091519574,0.286752,41493.0,41486.0,0.20485964]
[1644091519768,0.00069666,41489.0,41486.0,0.20370142]
[1644091520567,0.17580522,41495.0,41486.0,0.20370142]
[1644091520773,0.286752,41494.0,41486.0,0.20230142]
[1644091520968,0.00069665,41490.0,41486.0,0.20230142]
[1644091521418,0.00069665,41490.0,41486.0,0.25230142]
[1644091521915,0.17580522,41495.0,41486.0,0.25230142]
[1644091522119,0.00069665,41490.0,41486.0,0.25230142]
[1644091523115,0.17580522,41495.0,41486.0,0.25230142]
[1644091523314,0.00069665,41490.0,41486.0,0.25230142]
[1644091524316,0.1,41495.0,41487.0,0.336576]
[1644091524518,0.1,41495.0,41487.0,0.00024464]
[1644091524720,0.1,41495.0,41486.0,0.25230142]
[1644091525362,0.07171743,41494.0,41486.0,0.25230142]
[1644091526563,0.06671743,41494.0,41486.0,0.25230142]
[1644091526963,0.00069443,41492.0,41486.0,0.25230142]
[1644091527370,0.00069443,41492.0,41488.0,0.05]
[1644091527865,0.06671743,41494.0,41488.0,0.05]
[1644091528065,0.35847298,41494.0,41488.0,0.05]
[1644091528366,0.1,41495.0,41488.0,0.05]
[1644091528917,0.286752,41494.0,41490.0,0.34697191]
[1644091529416,0.1,41495.0,41490.0,0.34697191]
[1644091530116,0.095,41495.0,41490.0,0.34697191]
[1644091531618,0.286752,41494.0,41490.0,0.34697191]
[1644091532220,0.09569419,41495.0,41490.0,0.34697191]
[1644091532662,0.095,41495.0,41490.0,0.34697191]
[1644091532865,0.09569419,41495.0,41490.0,0.34697191]
[1644091533763,0.095,41495.0,41490.0,0.34697191]
[1644091533964,0.09569419,41495.0,41490.0,0.34697191]
[1644091534366,0.09569419,41495.0,41489.0,0.05]
[1644091534567,0.286752,41494.0,41489.0,0.05]
[1644091534970,0.07008475,41493.0,41489.0,0.05]
[1644091535769,0.286752,41492.0,41486.0,0.00024464]
[1644091535968,0.35035552,41491.0,41487.0,0.00024464]
[1644091536170,0.286752,41490.0,41481.0,0.03981486]
[1644091536428,0.06807199,41485.0,41481.0,0.04050925]
[1644091536723,0.048,41484.0,41481.0,0.04050925]
[1644091537019,0.048,41484.0,41481.0,0.01934185]
[1644091537419,0.048,41484.0,41481.0,0.01864746]
[1644091540565,0.0002904,41487.0,41481.0,0.01864746]
[1644091540766,0.0002904,41487.0,41481.0,0.27250529]
[1644091540972,0.048,41492.0,41481.0,0.01748924]
[1644091541168,0.048,41492.0,41481.0,0.01818198]
[1644091541368,0.00069263,41487.0,41482.0,0.25121285]
[1644091541567,0.1308135,41486.0,41482.0,0.25145749]
[1644091541769,0.1308135,41486.0,41482.0,0.25005749]
[1644091542167,0.1308135,41486.0,41482.0,0.00024464]
[1644091542368,0.1308135,41486.0,41481.0,0.0172446]
[1644091542369,0.1308135,41486.0,41481.0,0.01748924]
[1644091542772,0.286752,41485.0,41481.0,0.01748924]
[1644091542967,0.048,41484.0,41481.0,0.01748924]
[1644091543168,0.048,41483.0,41481.0,0.01748924]
[1644091543367,0.048,41482.0,41481.0,0.0172446]
[1644091543569,0.048,41482.0,41481.0,0.01748924]
[1644091543768,0.048,41482.0,41481.0,0.0172446]
[1644091544634,0.048,41482.0,41481.0,4.46e-05]
[1644091545034,0.34226339,41482.0,41481.0,4.46e-05]
[1644091545233,0.62901539,41482.0,41481.0,4.46e-05]
[1644091545439,0.334752,41482.0,41481.0,4.46e-05]
[1644091546035,0.048,41482.0,41481.0,4.46e-05]
[1644091547767,0.334752,41482.0,41481.0,4.46e-05]
[1644091549969,0.334752,41482.0,41480.0,0.60676492]
[1644091550169,0.434752,41482.0,41480.0,0.60676492]
[1644091553134,0.434752,41482.0,41480.0,0.60476492]
[1644091553738,0.28628937,41481.0,41480.0,0.60476492]
[1644091553935,0.62104137,41481.0,41480.0,0.60476492]
[1644091554536,0.87242753,41481.0,41480.0,0.60476492]
[1644091554737,0.57760838,41481.0,41480.0,0.60476492]
[1644091554936,0.74285667,41481.0,41480.0,0.59976492]
[1644091555171,0.334752,41481.0,41480.0,0.59976492]
[1644091555571,0.62317542,41481.0,41480.0,0.59976492]
[1644091555770,0.334752,41481.0,41480.0,0.59976492]
[1644091557273,0.62254476,41481.0,41480.0,0.59976492]
[1644091557673,0.78779305,41481.0,41480.0,0.59976492]
[1644091557874,0.62254476,41481.0,41480.0,0.59976492]
[1644091559314,0.87694259,41481.0,41480.0,0.59976492]
[1644091559512,0.62254476,41481.0,41480.0,0.59976492]
[1644091559714,0.78779305,41481.0,41480.0,0.59976492]
[1644091559914,0.62254476,41481.0,41480.0,0.59976492]
[1644091561916,0.62254476,41481.0,41480.0,0.5986067]
[1644091562517,0.85073674,41481.0,41480.0,0.5986067]
[1644091562763,0.85073674,41481.0,41480.0,0.5972067]
[1644091564568,0.62254476,41481.0,41480.0,0.5972067]
[1644091565971,0.33579276,41481.0,41480.0,0.5972067]
[1644091566169,0.41579276,41481.0,41480.0,0.5972067]
[1644091567217,0.70254476,41481.0,41480.0,0.5972067]
[1644091570469,0.70254476,41481.0,41480.0,0.59209213]
[1644091573269,0.85254476,41481.0,41480.0,0.59209213]
[1644091573469,0.85254476,41481.0,41479.0,0.00324464]
[1644091573470,0.85254476,41481.0,41479.0,0.00124464]
[1644091573671,0.83,41479.0,41478.0,2.22e-06]
[1644091573944,0.83,41479.0,41454.0,0.9403]
[1644091573945,0.2,41474.0,41458.0,0.0001532]
[1644091574132,0.13,41459.0,41458.0,0.0001532]
[1644091574530,0.13,41459.0,41456.0,0.0003064]
[1644091574531,0.08,41457.0,41456.0,0.0003064]
[1644091574729,0.08,41453.0,41451.0,0.66699572]
[1644091574930,0.1,41460.0,41451.0,0.66699572]
[1644091574931,0.08,41452.0,41451.0,0.66699572]
[1644091575133,0.08,41457.0,41452.0,0.75]
[1644091575328,0.08,41457.0,41451.0,0.66699572]
[1644091575728,0.08,41457.0,41452.0,0.3]
[1644091575928,0.08,41457.0,41451.0,0.66199572]
[1644091576128,0.08,41457.0,41452.0,0.00039964]
[1644091576329,0.14601442,41455.0,41452.0,0.00039964]
[1644091576629,0.08,41453.0,41452.0,0.00039964]
[1644091576835,0.128,41453.0,41451.0,0.66175536]
[1644091577029,0.366752,41452.0,41451.0,0.66175536]
[1644091577229,0.08,41452.0,41451.0,0.66175536]
[1644091578474,0.08,41452.0,41451.0,0.66137536]
[1644091578674,0.43,41452.0,41451.0,0.66137536]
[1644091578874,0.178,41452.0,41451.0,0.66137536]
[1644091579076,0.464752,41452.0,41451.0,0.66137536]
[1644091580084,0.564752,41452.0,41451.0,0.66137536]
[1644091580279,0.08,41450.0,41447.0,0.02112413]
[1644091580475,0.13,41448.0,41447.0,0.02234973]
[1644091580675,0.516752,41448.0,41447.0,0.00014973]
[1644091580876,0.564752,41448.0,41447.0,0.00014973]
[1644091581078,0.464752,41448.0,41447.0,0.00014973]
[1644091581277,0.414752,41448.0,41447.0,0.00014973]
[1644091581536,0.2,41460.0,41445.0,0.0011]
[1644091581537,0.1,41467.0,41445.0,0.75]
[1644091581739,0.5,41464.0,41451.0,0.79848168]
[1644091581935,0.05,41473.0,41452.0,0.55538264]
[1644091582140,0.16575517,41470.0,41453.0,0.1012771]
[1644091582334,1.3165891,41484.0,41466.0,0.5948]
[1644091582335,0.16575517,41482.0,41466.0,0.5948]
[1644091582634,0.16575517,41482.0,41468.0,0.337018]
[1644091582832,0.16575517,41482.0,41469.0,0.048]
[1644091583132,0.16575517,41483.0,41481.0,0.23603649]
[1644091583333,0.03,41489.0,41482.0,0.048]
[1644091583334,0.13,41489.0,41482.0,0.048]
[1644091583530,0.13,41489.0,41483.0,0.048]
[1644091583732,0.13,41489.0,41484.0,0.04684178]
[1644091583936,0.13,41489.0,41474.0,0.337018]
[1644091584132,0.13,41489.0,41472.0,0.6998]
[1644091584133,0.05,41485.0,41472.0,0.3]
[1644091584330,0.0872132,41482.0,41476.0,0.21224501]
[1644091584534,0.0872132,41482.0,41477.0,0.048]
[1644091584737,0.00029077,41484.0,41477.0,0.048]
[1644091584932,0.35523444,41484.0,41477.0,0.0466]
[1644091585473,0.35494367,41484.0,41477.0,0.0466]
[1644091585675,0.0006883,41483.0,41477.0,0.0466]
[1644091585876,0.07203017,41480.0,41477.0,0.0466]
[1644091586076,0.07203017,41480.0,41476.0,0.21224501]
[1644091586277,0.0006883,41483.0,41476.0,0.21224501]
[1644091586777,0.40494367,41484.0,41471.0,0.42437584]
[1644091586976,0.13,41489.0,41467.0,0.2642262]
[1644091586977,0.35639371,41477.0,41467.0,0.2642262]
[1644091587178,0.35639371,41477.0,41466.0,0.26450855]
[1644091587481,0.35639371,41477.0,41461.0,0.40531784]
[1644091587677,0.00068831,41482.0,41463.0,0.04868168]
[1644091587880,0.05,41488.0,41467.0,0.19868168]
[1644091588178,0.00029077,41471.0,41469.0,0.19868168]
[1644091588378,0.00029077,41471.0,41470.0,0.7382951]
[1644091588583,0.00029077,41471.0,41470.0,1.00250464]
[1644091588929,0.00029077,41471.0,41470.0,1.45369036]
[1644091589122,0.13,41489.0,41470.0,1.40041326]
[1644091589319,0.36024996,41486.0,41477.0,0.31905553]
[1644091589519,0.01850276,41484.0,41471.0,0.30023776]
[1644091589921,0.08276871,41481.0,41477.0,0.25086727]
[1644091590126,0.08276871,41481.0,41472.0,0.00023776]
[1644091590322,0.01850276,41484.0,41473.0,0.048]
[1644091590524,0.01850276,41484.0,41475.0,0.38569968]
[1644091590725,0.01850276,41484.0,41474.0,0.45]
[1644091590726,0.01850276,41484.0,41477.0,0.337018]
[1644091590922,0.01850276,41484.0,41477.0,0.437018]
[1644091591221,0.01850276,41484.0,41477.0,0.1]
[1644091591421,0.06693566,41483.0,41478.0,0.72646147]
[1644091591620,0.06693566,41483.0,41478.0,0.98910754]
[1644091591922,0.00068927,41483.0,41478.0,1.09186237]
[1644091592320,0.00068927,41483.0,41482.0,0.25462705]
[1644091592525,0.00068927,41483.0,41482.0,0.59164505]
[1644091592772,0.33637013,41487.0,41482.0,0.59164505]
[1644091592969,0.00068925,41485.0,41483.0,0.337018]
[1644091593168,0.00068925,41485.0,41483.0,0.60073308]
[1644091593369,0.00068925,41485.0,41483.0,0.59717425]
[1644091593569,0.00068925,41485.0,41483.0,0.337018]
[1644091593768,0.00068925,41485.0,41484.0,0.59624618]
[1644091593970,0.07168999,41488.0,41484.0,0.337018]
[1644091594170,0.07168999,41488.0,41482.0,0.25462705]
[1644091594370,0.47742277,41489.0,41482.0,0.25462705]
[1644091594671,0.47742277,41489.0,41483.0,0.26179886]
[1644091594870,0.1,41489.0,41483.0,0.26179886]
[1644091596070,0.1,41489.0,41486.0,0.29499446]
[1644091596273,0.0684833,41497.0,41486.0,0.29499446]
[1644091596274,0.0684833,41497.0,41487.0,0.62592439]
[1644091596523,0.0184833,41497.0,41487.0,0.72592439]
[1644091596720,0.0184833,41497.0,41489.0,0.05]
[1644091596919,0.0184833,41497.0,41490.0,0.62334589]
[1644091597119,0.0184833,41497.0,41496.0,0.3660437]
[1644091597320,0.0184833,41497.0,41496.0,0.9957716]
[1644091597923,0.02069133,41499.0,41496.0,0.9957716]
[1644091598119,0.02069133,41499.0,41497.0,0.337018]
[1644091598319,0.02069133,41499.0,41498.0,0.29090163]
[1644091598525,0.02069133,41499.0,41498.0,0.67791963]
[1644091598719,0.02069133,41499.0,41498.0,0.99406018]
[1644091598921,0.02,41499.0,41498.0,1.09406018]
[1644091599721,0.01983,41499.0,41498.0,0.80315855]
[1644091600470,0.074,41517.0,41500.0,1.327991]
[1644091600471,0.00276476,41508.0,41500.0,1.327991]
[1644091600667,0.0502814,41516.0,41502.0,0.1204743]
[1644091600866,0.0502814,41516.0,41503.0,0.40643538]
[1644091601065,0.0502814,41516.0,41505.0,0.55648728]
[1644091601264,0.0502814,41516.0,41506.0,0.048]
[1644091601465,0.0502814,41516.0,41508.0,0.120475]
[1644091601666,0.0002814,41516.0,41509.0,0.337018]
[1644091601969,0.0002814,41516.0,41509.0,0.537018]
[1644091602164,0.0002814,41516.0,41511.0,0.337018]
[1644091602364,0.0002814,41516.0,41512.0,0.55404812]
[1644091602565,0.0002814,41516.0,41513.0,0.337018]
[1644091602865,0.0002814,41516.0,41513.0,0.437018]
[1644091603068,0.0002814,41516.0,41513.0,0.69676281]
[1644091603665,0.0002814,41516.0,41513.0,0.74676281]
[1644091603925,0.05,41525.0,41513.0,0.74676281]
[1644091603926,0.2172,41534.0,41516.0,0.75]
[1644091604123,0.2172,41534.0,41517.0,0.65355965]
[1644091604320,0.29486055,41534.0,41517.0,0.75355965]
[1644091604520,0.23633291,41532.0,41517.0,0.75355965]
[1644091604920,0.28633291,41532.0,41517.0,0.41654165]
[1644091605125,0.06365702,41519.0,41514.0,0.048]
[1644091605320,0.15,41522.0,41511.0,0.37718155]
[1644091605521,0.22485607,41520.0,41514.0,0.22207298]
[1644091605723,0.095,41522.0,41514.0,0.22207298]
[1644091605919,0.095,41522.0,41518.0,0.28380624]
[1644091606321,0.05,41519.0,41511.0,0.1]
[1644091606522,0.05,41516.0,41506.0,0.25813089]
[1644091606720,0.05,41516.0,41507.0,0.2609047]
[1644091606921,0.098,41516.0,41506.0,0.00036752]
[1644091607320,0.26354165,41516.0,41511.0,0.35926123]
[1644091607522,0.05,41516.0,41511.0,0.35926123]
[1644091607771,0.02016964,41520.0,41511.0,0.35926123]
[1644091608870,0.00065841,41518.0,41516.0,0.25927288]
[1644091609070,0.00065841,41518.0,41511.0,0.45926123]
[1644091609276,0.00065841,41518.0,41512.0,0.337018]
[1644091609471,0.00065841,41518.0,41514.0,0.337018]
[1644091609673,0.34265837,41521.0,41514.0,0.337018]
[1644091609872,0.34265837,41521.0,41514.0,0.1]
[1644091610071,0.0006699,41518.0,41514.0,0.1]
[1644091610876,0.0006699,41518.0,41513.0,0.22749298]
[1644091611074,0.34265837,41521.0,41513.0,0.22749298]
[1644091611423,0.60991247,41521.0,41513.0,0.22749298]
[1644091611717,0.34265837,41521.0,41513.0,0.22749298]
[1644091612817,0.34265837,41521.0,41514.0,0.337018]
[1644091613019,0.095,41522.0,41515.0,0.27246727]
[1644091613220,0.11641171,41522.0,41516.0,0.33590033]
[1644091613820,0.00069564,41521.0,41516.0,0.33590033]
[1644091614620,0.4599776,41522.0,41517.0,0.337018]
[1644091614821,0.4599776,41522.0,41515.0,0.27246727]
[1644091615970,0.43856589,41522.0,41515.0,0.27246727]
[1644091616370,0.43856589,41522.0,41513.0,0.3877284]
[1644091616371,0.07548461,41518.0,41513.0,0.1]
[1644091616568,0.07548461,41518.0,41511.0,0.0004043]
[1644091616569,0.05,41517.0,41511.0,0.0004043]
[1644091616770,0.07548461,41518.0,41511.0,0.0004043]
[1644091616771,0.05,41512.0,41511.0,0.0004043]
[1644091617168,0.098,41512.0,41501.0,0.38016336]
[1644091617369,0.098,41512.0,41509.0,0.00040431]
[1644091617370,0.07846498,41511.0,41509.0,0.00040431]
[1644091617568,0.12646498,41511.0,41509.0,0.00040431]
[1644091617970,0.048,41511.0,41509.0,0.00040431]
[1644091618370,0.048,41511.0,41505.0,0.27392336]
[1644091618579,0.05,41507.0,41495.0,0.06026362]
[1644091618775,0.05,41507.0,41487.0,0.184771]
[1644091618776,0.048,41506.0,41487.0,0.184771]
[1644091619025,0.048,41506.0,41488.0,0.3]
[1644091619226,0.07052627,41499.0,41488.0,0.3]
[1644091619424,0.07052627,41499.0,41491.0,0.36607682]
[1644091619425,0.33828986,41498.0,41491.0,0.36607682]
[1644091619623,0.048,41500.0,41494.0,0.21639212]
[1644091619825,0.048,41500.0,41495.0,0.636462]
[1644091620523,0.048,41510.0,41495.0,0.686462]
[1644091620724,0.0209953,41507.0,41495.0,0.5]
[1644091620930,0.0209953,41507.0,41496.0,0.336462]
[1644091621427,0.2,41516.0,41496.0,0.336462]
[1644091621428,0.15,41516.0,41500.0,0.336462]
[1644091621625,0.1,41516.0,41504.0,0.060246]
[1644091621826,0.1,41516.0,41512.0,0.31943735]
[1644091622325,0.1,41516.0,41512.0,0.41943735]
[1644091623076,0.1,41516.0,41512.0,0.41442519]
[1644091623276,0.1,41516.0,41512.0,0.16023982]
[1644091623680,0.1,41516.0,41512.0,0.06023982]
[1644091625178,0.1,41516.0,41513.0,0.336462]
[1644091625378,0.1,41516.0,41514.0,0.28960331]
[1644091625579,0.00027601,41518.0,41515.0,0.336462]
[1644091625779,0.01996321,41519.0,41515.0,0.436462]
[1644091625983,0.0196872,41519.0,41518.0,0.28390627]
[1644091626182,0.01996321,41519.0,41518.0,0.88886869]
[1644091626421,0.0196872,41519.0,41518.0,1.21859366]
[1644091627319,0.0196872,41519.0,41518.0,1.26774072]
[1644091627518,0.00069556,41521.0,41518.0,1.27097968]
[1644091627719,0.00069556,41521.0,41519.0,0.336462]
[1644091627919,0.00027601,41523.0,41519.0,0.436462]
[1644091628119,0.05,41520.0,41519.0,0.436462]
[1644091628724,0.05,41520.0,41519.0,0.69244249]
[1644091628919,0.05,41520.0,41519.0,0.436462]
[1644091629120,0.05,41520.0,41519.0,0.336462]
[1644091629321,0.00027601,41523.0,41519.0,0.436462]
[1644091629521,0.00069555,41522.0,41519.0,0.69917196]
[1644091629722,0.00069555,41522.0,41519.0,0.79917196]
[1644091629922,0.00069555,41522.0,41521.0,0.336462]
[1644091630469,0.00027601,41524.0,41521.0,0.436462]
[1644091630669,0.05,41522.0,41521.0,0.15]
[1644091630870,0.05,41522.0,41521.0,0.436462]
[1644091631073,0.00095848,41524.0,41521.0,0.1]
[1644091631274,0.00068247,41524.0,41519.0,0.26270996]
[1644091631468,0.00095848,41524.0,41520.0,0.336462]
[1644091631668,0.00027601,41526.0,41519.0,0.26270996]
[1644091631971,0.05,41527.0,41521.0,0.336462]
[1644091631972,0.00068247,41524.0,41521.0,0.336462]
[1644091632368,0.00068247,41524.0,41521.0,0.436462]
[1644091632770,0.00027601,41526.0,41521.0,0.436462]
[1644091632970,0.00068246,41525.0,41522.0,0.25719026]
[1644091633173,0.00068246,41525.0,41522.0,0.30719026]